fUST/lending_fUST_20240925
["ID","MTS","AMOUNT","RATE_DAILY","PERIOD"]
[339103517,1727247060004,-500.0,0.00016712,2]
[339103518,1727247060013,-277.129831,0.00016712,2]
[339103519,1727247060022,-1373.469193,0.00016712,2]
[339103520,1727247060031,-277.129831,0.00016712,2]
[339103521,1727247060041,-1373.469193,0.00016712,2]
[339103522,1727247060050,-500.0,0.00016712,2]
[339103523,1727247060060,-500.0,0.00016712,2]
[339103524,1727247060069,-500.0,0.00016712,2]
[339103525,1727247060079,-500.0,0.00016712,2]
[339103526,1727247060088,-1373.469193,0.00016712,2]
[339103527,1727247060098,-1373.469185,0.00016712,2]
[339103528,1727247060107,-500.0,0.00016712,2]
[339103529,1727247060117,-277.129831,0.00016712,2]
[339103530,1727247060127,-277.129831,0.00016712,2]
[339103531,1727247060137,-247.01174743,0.00016712,2]
[339103532,1727247060146,-500.0,0.00016712,2]
[339103533,1727247060156,-500.0,0.00016712,2]
[339103534,1727247060165,-500.0,0.00016712,2]
[339103535,1727247060176,-500.0,0.00016712,2]
[339103536,1727247060186,-500.0,0.00016712,2]
[339103537,1727247060196,-151.0,0.00016712,2]
[339103538,1727247060206,-151.0,0.00016712,2]
[339103539,1727247060216,-641.60017908,0.00016712,2]
[339103540,1727247060226,-513.66,0.00016712,2]
[339103541,1727247060235,-500.0,0.00016712,2]
[339103542,1727247060244,-1936.3,0.00016712,2]
[339103543,1727247060254,-625.543494,0.00016712,2]
[339103544,1727247060267,-500.0,0.00016712,2]
[339103545,1727247060276,-500.0,0.00016712,2]
[339103546,1727247060285,-500.0,0.00016712,2]
[339103547,1727247060295,-576.6,0.00016712,2]
[339103548,1727247060305,-625.543502,0.00016712,2]
[339103549,1727247060315,-500.0,0.00016712,2]
[339103550,1727247060325,-500.0,0.00016712,2]
[339103551,1727247060336,-500.0,0.00016712,2]
[339103552,1727247060346,-500.0,0.00016712,2]
[339103553,1727247060356,-609.41,0.00016712,2]
[339103554,1727247060365,-692.44,0.00016712,2]
[339103555,1727247060374,-636.88081882,0.00016712,2]
[339103556,1727247060384,-500.0,0.00016712,2]
[339103557,1727247060394,-500.0,0.00016712,2]
[339103558,1727247060403,-500.0,0.00016712,2]
[339103559,1727247060413,-522.31,0.00016712,2]
[339103560,1727247060423,-500.0,0.00016712,2]
[339103561,1727247060433,-167.15396767,0.00016712,2]
[339103562,1727247060443,-500.0,0.00016712,2]
[339103563,1727247060453,-646.59,0.00016712,2]
[339103564,1727247060462,-151.0,0.00016712,2]
[339103565,1727247060472,-151.0,0.00016712,2]
[339103566,1727247060481,-1523.22,0.00016712,2]
[339103567,1727247060491,-500.0,0.00016712,2]
[339103568,1727247060501,-571.20994537,0.00016712,2]
[339103569,1727247060511,-500.0,0.00016712,2]
[339103570,1727247060521,-526.31,0.00016712,2]
[339103571,1727247060531,-500.0,0.00016712,2]
[339103572,1727247060540,-220.790639,0.00016712,2]
[339103573,1727247060550,-500.0,0.00016712,2]
[339103574,1727247060560,-500.0,0.00016712,2]
[339103575,1727247060569,-318.037931,0.00016712,2]
[339103576,1727247060578,-318.037931,0.00016712,2]
[339103577,1727247060587,-475.61037516,0.00016712,2]
[339103578,1727247060598,-318.037931,0.00016712,2]
[339103579,1727247060608,-318.037936,0.00016712,2]
[339103580,1727247060618,-500.0,0.00016712,2]
[339103581,1727247060629,-500.0,0.00016712,2]
[339103582,1727247060639,-859.35776,0.00016712,2]
[339103583,1727247060649,-500.0,0.00016712,2]
[339103584,1727247060658,-512.57,0.00016712,2]
[339103585,1727247060668,-859.357758,0.00016712,2]
[339103586,1727247060678,-500.0,0.00016712,2]
[339103587,1727247060688,-500.0,0.00016712,2]
[339103588,1727247060697,-668.49,0.00016712,2]
[339103589,1727247060707,-500.0,0.00016712,2]
[339103590,1727247060717,-500.0,0.00016712,2]
[339103591,1727247060727,-500.0,0.00016712,2]
[339103592,1727247060736,-500.0,0.00016712,2]
[339103593,1727247060745,-500.0,0.00016712,2]
[339103594,1727247060755,-500.0,0.00016712,2]
[339103595,1727247060764,-500.0,0.00016712,2]
[339103596,1727247060774,-500.0,0.00016712,2]
[339103597,1727247060783,-769.27,0.00016712,2]
[339103598,1727247060792,-500.0,0.00016712,2]
[339103599,1727247060801,-312.4307038,0.00016712,2]
[339103600,1727247060811,-500.0,0.00016712,2]
[339103601,1727247060819,-500.0,0.00016712,2]
[339103602,1727247060829,-500.0,0.00016712,2]
[339103603,1727247060838,-289.05216459,0.00016712,2]
[339103604,1727247060847,-615.46,0.00016712,2]
[339103605,1727247060856,-151.0,0.00016712,2]
[339103606,1727247060866,-500.0,0.00016712,2]
[339103607,1727247060875,-500.0,0.00016712,2]
[339103608,1727247060883,-500.0,0.00016712,2]
[339103609,1727247060893,-520.79936084,0.00016712,2]
[339103610,1727247060902,-500.12488518,0.00016712,2]
[339103611,1727247060911,-500.0,0.00016712,2]
[339103612,1727247060920,-2597.89,0.00016712,2]
[339103613,1727247060930,-500.0,0.00016712,2]
[339103614,1727247060941,-500.0,0.00016712,2]
[339103615,1727247060951,-16161.53530252,0.00016712,2]
[339103616,1727247061166,-151.0,0.0001478,2]
[339103617,1727247061179,-428.54417285,0.0001478,2]
[339103618,1727247061192,-282.18589615,0.0001478,2]
[339103619,1727247061201,-151.0,0.0001478,2]
[339103620,1727247061210,-710.730069,0.0001478,2]
[339103621,1727247061219,-281.244047,0.0001479,2]
[339103622,1727247061229,-710.730069,0.0001479,2]
[339103623,1727247061238,-151.0,0.0001479,2]
[339103624,1727247061247,-710.730069,0.0001479,2]
[339103625,1727247061258,-710.730069,0.00014927,2]
[339103626,1727247061270,-151.0,0.00014927,2]
[339103627,1727247061280,-710.730069,0.0001595,2]
[339103628,1727247061289,-151.0,0.0001595,2]
[339103629,1727247061298,-710.730069,0.00016428,2]
[339103630,1727247061308,-506.44563386,0.00016438,2]
[339103631,1727247061317,-710.730069,0.00016438,2]
[339103632,1727247061328,-710.730069,0.00016438,2]
[339103633,1727247061340,-710.730069,0.00016438,2]
[339103634,1727247061350,-710.730069,0.00016438,2]
[339103635,1727247061361,-710.730069,0.00016438,2]
[339103636,1727247061370,-659.48561938,0.00016712,2]
[339103637,1727247061571,827.38,0.00010959,2]
[339103640,1727247238939,24900.0,0.00013775,2]
[339103641,1727247263395,189.862764,0.00013084,2]
[339103642,1727247263429,189.862764,0.00013543,2]
[339103643,1727247263582,189.862764,0.00014002,2]
[339103644,1727247278139,758.169372,0.00013766,2]
[339103645,1727247332140,1846.2867504,0.00013768,2]
[339103646,1727247375793,3000.0,0.00013765,2]
[339103647,1727247510162,250.0,0.00013863,2]
[339103648,1727247510377,250.0,0.00013901,2]
[339103649,1727247510806,250.0,0.00013939,2]
[339103650,1727247510891,250.0,0.00013977,2]
[339103651,1727247511000,250.0,0.00014015,2]
[339103652,1727247511199,250.0,0.00014053,2]
[339103653,1727247511438,250.0,0.00014091,2]
[339103654,1727247572691,1261.171725,0.00013699,2]
[339103656,1727247713686,5000.0,0.000141,2]
[339103667,1727247773181,24900.0,0.00013492,2]
[339103668,1727247835920,267.92799705,0.0002203,120]
[339103671,1727247896954,189.862764,0.00012784,2]
[339103672,1727247938952,471.833914,0.00013699,2]
[339103673,1727247939581,2433.6510839,0.00013463,2]
[339103674,1727248009110,-193.24847806,0.00014129,2]
[339103675,1727248054059,1125.538722,0.00013699,2]
[339103676,1727248072937,250.0,0.00013707,2]
[339103677,1727248073367,250.0,0.00013744,2]
[339103678,1727248073599,250.0,0.00013782,2]
[339103679,1727248073803,250.0,0.00013819,2]
[339103680,1727248074011,250.0,0.00013857,2]
[339103681,1727248074218,250.0,0.00013895,2]
[339103682,1727248074429,250.0,0.00013932,2]
[339103683,1727248074635,250.0,0.0001397,2]
[339103684,1727248074854,250.0,0.00014007,2]
[339103685,1727248075066,250.0,0.00014045,2]
[339103686,1727248075274,250.0,0.00014083,2]
[339103687,1727248158087,-245.2810922,0.0001412,2]
[339103906,1727248238356,-4.7189078,0.0001412,2]
[339103908,1727248238366,-250.0,0.00014158,2]
[339103909,1727248238376,-250.0,0.00014195,2]
[339103911,1727248238385,-250.0,0.00014233,2]
[339103913,1727248238394,-45.2810922,0.0001427,2]
[339103955,1727248239968,-204.7189078,0.0001427,2]
[339103956,1727248239978,-250.0,0.00014308,2]
[339103957,1727248239989,-250.0,0.00014346,2]
[339103958,1727248239999,-250.0,0.00014383,2]
[339103959,1727248240009,-1125.538722,0.00014384,2]
[339103960,1727248240019,-250.0,0.00014421,2]
[339103961,1727248240029,-300.0,0.00014625,2]
[339103962,1727248240039,-300.0,0.00014625,2]
[339103963,1727248240050,-6587.32241209,0.00014626,2]
[339103964,1727248240060,-250.36427573,0.00014639,2]
[339103965,1727248240069,-500.0,0.00014725,2]
[339103966,1727248240078,-500.0,0.00014725,2]
[339103967,1727248240088,-500.0,0.00014725,2]
[339103968,1727248240097,-310.13040458,0.00014725,2]
[339103969,1727248240106,-391.6910833,0.00014725,2]
[339103970,1727248240116,-500.0,0.00014725,2]
[339103971,1727248240125,-623.95785687,0.00014725,2]
[339103972,1727248240134,-536.95120178,0.00014725,2]
[339103973,1727248240144,-500.0,0.00014725,2]
[339103974,1727248240153,-500.0,0.00014725,2]
[339103975,1727248240163,-500.0,0.00014725,2]
[339103976,1727248240172,-164.85657462,0.00014725,2]
[339103977,1727248240182,-500.0,0.00014725,2]
[339103978,1727248240191,-500.0,0.00014725,2]
[339103979,1727248240200,-500.0,0.00014725,2]
[339103980,1727248240211,-500.0,0.00014725,2]
[339103981,1727248240220,-500.0,0.00014725,2]
[339103982,1727248240229,-500.0,0.00014725,2]
[339103983,1727248240239,-500.0,0.00014725,2]
[339103984,1727248240248,-500.0,0.00014725,2]
[339103985,1727248240258,-963.3025711,0.00014725,2]
[339103986,1727248240268,-549.03240187,0.00014725,2]
[339103987,1727248240278,-233.71633169,0.00014725,2]
[339103988,1727248240287,-500.0,0.00014725,2]
[339103989,1727248240297,-371.77283094,0.00014725,2]
[339103990,1727248240306,-617.6176891,0.00014725,2]
[339103991,1727248240315,-500.0,0.00014725,2]
[339103992,1727248240324,-500.0,0.00014725,2]
[339103993,1727248240334,-500.0,0.00014725,2]
[339103994,1727248240347,-963.3025711,0.00014725,2]
[339103995,1727248240357,-500.0,0.00014725,2]
[339103996,1727248240367,-963.3025711,0.00014725,2]
[339103997,1727248240376,-500.0,0.00014725,2]
[339103998,1727248240385,-500.0,0.00014725,2]
[339103999,1727248240394,-963.3025711,0.00014725,2]
[339104000,1727248240404,-500.0,0.00014725,2]
[339104001,1727248240414,-500.0,0.00014725,2]
[339104002,1727248240424,-500.0,0.00014725,2]
[339104003,1727248240434,-371.13528897,0.00014725,2]
[339104004,1727248240443,-963.3025711,0.00014725,2]
[339104005,1727248240453,-500.0,0.00014725,2]
[339104006,1727248240462,-963.3025711,0.00014725,2]
[339104007,1727248240472,-500.0,0.00014725,2]
[339104008,1727248240481,-500.0,0.00014725,2]
[339104009,1727248240491,-963.3025711,0.00014725,2]
[339104010,1727248240500,-500.0,0.00014725,2]
[339104011,1727248240509,-963.3025711,0.00014725,2]
[339104012,1727248240518,-500.0,0.00014725,2]
[339104013,1727248240528,-963.3025711,0.00014725,2]
[339104014,1727248240537,-500.0,0.00014725,2]
[339104015,1727248240546,-500.0,0.00014725,2]
[339104016,1727248240556,-963.3025711,0.00014725,2]
[339104017,1727248240565,-500.0,0.00014725,2]
[339104018,1727248240574,-963.3025711,0.00014725,2]
[339104019,1727248240584,-500.0,0.00014725,2]
[339104020,1727248240594,-538.368396,0.00014725,2]
[339104021,1727248240604,-963.3025711,0.00014725,2]
[339104022,1727248240614,-963.3025711,0.00014725,2]
[339104023,1727248240623,-500.0,0.00014725,2]
[339104024,1727248240633,-963.3025711,0.00014725,2]
[339104025,1727248240643,-500.0,0.00014725,2]
[339104026,1727248240653,-963.3025711,0.00014725,2]
[339104027,1727248240662,-500.0,0.00014725,2]
[339104028,1727248240672,-963.3025711,0.00014725,2]
[339104029,1727248240681,-500.0,0.00014725,2]
[339104030,1727248240693,-500.0,0.00014725,2]
[339104031,1727248240707,-963.3025711,0.00014725,2]
[339104032,1727248240717,-963.3025711,0.00014725,2]
[339104033,1727248240726,-500.0,0.00014725,2]
[339104034,1727248240735,-963.3025711,0.00014725,2]
[339104035,1727248240744,-500.0,0.00014725,2]
[339104036,1727248240754,-963.3025711,0.00014725,2]
[339104037,1727248240764,-500.0,0.00014725,2]
[339104038,1727248240774,-963.3025711,0.00014725,2]
[339104039,1727248240784,-500.0,0.00014725,2]
[339104040,1727248240794,-963.3025711,0.00014725,2]
[339104041,1727248240803,-500.0,0.00014725,2]
[339104042,1727248240813,-963.3025711,0.00014725,2]
[339104043,1727248240823,-500.0,0.00014725,2]
[339104044,1727248240832,-963.3025711,0.00014725,2]
[339104045,1727248240842,-963.3025711,0.00014725,2]
[339104046,1727248240851,-500.0,0.00014725,2]
[339104047,1727248240860,-963.3025711,0.00014725,2]
[339104048,1727248240870,-500.0,0.00014725,2]
[339104049,1727248240879,-500.0,0.00014725,2]
[339104050,1727248240889,-963.3025711,0.00014725,2]
[339104051,1727248240898,-963.3025711,0.00014725,2]
[339104052,1727248240907,-500.0,0.00014725,2]
[339104053,1727248240917,-963.3025711,0.00014725,2]
[339104054,1727248240926,-500.0,0.00014725,2]
[339104055,1727248240935,-963.3025711,0.00014725,2]
[339104056,1727248240945,-963.3025711,0.00014725,2]
[339104057,1727248240954,-963.3025711,0.00014725,2]
[339104058,1727248240963,-963.3025711,0.00014725,2]
[339104059,1727248240972,-963.3025711,0.00014725,2]
[339104060,1727248240981,-963.3025711,0.00014725,2]
[339104061,1727248240991,-6768.05740599,0.00014727,2]
[339104062,1727248241002,-50702.7046115,0.00014727,2]
[339104063,1727248241011,-82008.8785841,0.00014727,2]
[339104064,1727248241020,-50702.7046115,0.00014731,2]
[339104065,1727248241030,-82008.8785841,0.00014731,2]
[339104066,1727248241040,-50702.7046115,0.00014734,2]
[339104067,1727248241049,-82008.8785841,0.00014734,2]
[339104068,1727248241059,-500.84476876,0.00014773,2]
[339104069,1727248241068,-377.26870101,0.00014773,2]
[339104070,1727248241077,-500.97611232,0.00014773,2]
[339104071,1727248241087,-500.86212564,0.00014773,2]
[339104072,1727248241097,-500.78709106,0.00014773,2]
[339104073,1727248241106,-502.25439013,0.00014773,2]
[339104074,1727248241116,-500.0,0.00014773,2]
[339104075,1727248241126,-500.0,0.00014773,2]
[339104076,1727248241135,-500.0,0.00014773,2]
[339104077,1727248241146,-500.0,0.00014773,2]
[339104078,1727248241155,-500.97502025,0.00014773,2]
[339104079,1727248241165,-501.14417144,0.00014773,2]
[339104080,1727248241175,-206.8210894,0.00014773,2]
[339104081,1727248241184,-501.30359529,0.00014773,2]
[339104082,1727248241194,-500.0,0.00014773,2]
[339104083,1727248241208,-500.0,0.00014773,2]
[339104084,1727248241217,-500.0,0.00014773,2]
[339104085,1727248241227,-500.64230462,0.00014773,2]
[339104086,1727248241245,-500.7346796,0.00014773,2]
[339104087,1727248241257,-50702.7046115,0.00014948,2]
[339104088,1727248241267,-82008.8785841,0.00014948,2]
[339104089,1727248241276,-50702.7046115,0.00014968,2]
[339104090,1727248241286,-82008.8785841,0.00014968,2]
[339104091,1727248241296,-151.0,0.00014968,2]
[339104092,1727248241306,-493.096581,0.00014968,2]
[339104093,1727248241315,-256.111396,0.00014968,2]
[339104094,1727248241324,-493.096581,0.00014968,2]
[339104095,1727248241334,-151.0,0.00014968,2]
[339104096,1727248241343,-385.987469,0.00014968,2]
[339104097,1727248241353,-151.0,0.00014968,2]
[339104098,1727248241363,-385.987469,0.00014968,2]
[339104099,1727248241373,-409.276415,0.00014968,2]
[339104100,1727248241382,-151.0,0.00014968,2]
[339104101,1727248241392,-500.0,0.00014973,2]
[339104102,1727248241402,-500.0,0.00014973,2]
[339104103,1727248241412,-500.0,0.00014973,2]
[339104104,1727248241422,-500.0,0.00014973,2]
[339104105,1727248241431,-300.51956721,0.00014973,2]
[339104106,1727248241441,-500.0,0.00014987,2]
[339104107,1727248241454,-1000.0,0.00014987,2]
[339104108,1727248241464,-1000.0,0.00014987,2]
[339104109,1727248241473,-1000.0,0.00014987,2]
[339104110,1727248241483,-1000.0,0.00014987,2]
[339104111,1727248241492,-1000.0,0.00014987,2]
[339104112,1727248241502,-1000.0,0.00014987,2]
[339104113,1727248241512,-1000.0,0.00014987,2]
[339104114,1727248241522,-749.6572609,0.00014987,2]
[339104115,1727248241531,-2000.0,0.00014988,2]
[339104116,1727248241541,-2000.0,0.00014988,2]
[339104117,1727248241551,-2000.0,0.00014988,2]
[339104118,1727248241561,-2000.0,0.00014988,2]
[339104119,1727248241571,-2000.0,0.00014988,2]
[339104120,1727248241580,-2000.0,0.00014988,2]
[339104121,1727248241590,-2000.0,0.00014988,2]
[339104122,1727248241599,-2000.0,0.00014988,2]
[339104123,1727248241609,-2000.0,0.00014988,2]
[339104124,1727248241619,-2000.0,0.00014988,2]
[339104125,1727248241628,-2000.0,0.00014988,2]
[339104126,1727248241638,-2000.0,0.00014988,2]
[339104127,1727248241648,-2000.0,0.00014988,2]
[339104128,1727248241658,-2000.0,0.00014988,2]
[339104129,1727248241667,-2000.0,0.00014988,2]
[339104130,1727248241677,-2014.67680889,0.00014999,2]
[339104131,1727248241687,-1000.0,0.00015,8]
[339104132,1727248241700,-50702.7046115,0.00015058,2]
[339104133,1727248241710,-82008.8785841,0.00015058,2]
[339104134,1727248241720,-151.0,0.00015059,2]
[339104135,1727248241730,-493.096581,0.00015059,2]
[339104136,1727248241741,-493.096581,0.00015059,2]
[339104137,1727248241751,-151.0,0.00015059,2]
[339104138,1727248241760,-385.987469,0.00015059,2]
[339104139,1727248241772,-151.0,0.00015059,2]
[339104140,1727248241781,-385.987469,0.00015059,2]
[339104141,1727248241791,-409.276415,0.00015059,2]
[339104142,1727248241801,-151.0,0.00015059,2]
[339104143,1727248241811,-250.3642757,0.00015064,2]
[339104144,1727248241821,-1125.538722,0.00015068,2]
[339104145,1727248241830,-1000.0,0.00015321,2]
[339104146,1727248241839,-1000.0,0.00015321,2]
[339104147,1727248241849,-1000.0,0.00015321,2]
[339104148,1727248241858,-250.3642757,0.00015489,2]
[339104149,1727248241868,-1000.0,0.00015521,2]
[339104150,1727248241878,-1001.386949,0.00015521,2]
[339104151,1727248241887,-160.612765,0.000157,2]
[339104152,1727248241898,-316.92493701,0.00015809,2]
[339104153,1727248242145,-150.112233,0.000159,2]
[339104154,1727248242155,-250.3642757,0.00015913,2]
[339104155,1727248242164,-153.0,0.00015991,2]
[339104156,1727248242174,-307.2386274,0.00015991,2]
[339104157,1727248242183,-1000.0,0.00016,16]
[339104158,1727248242195,-420.0,0.00016012,2]
[339104159,1727248242205,-208.9234097,0.0001605,2]
[339104160,1727248242214,-454.1743274,0.0001605,2]
[339104161,1727248242224,-420.0,0.00016088,2]
[339104162,1727248242234,-150.112233,0.000161,2]
[339104163,1727248242243,-500.0,0.0001626,7]
[339104164,1727248242253,-178.19,0.0001626,7]
[339104165,1727248242263,-150.112233,0.000163,2]
[339104166,1727248242273,-150.112235,0.000163,2]
[339104167,1727248242282,-500.0,0.00016322,2]
[339104168,1727248242291,-1196.63194089,0.00016322,2]
[339104169,1727248242301,-250.3642757,0.00016338,2]
[339104170,1727248242311,-150.112233,0.000164,2]
[339104171,1727248242320,-1000.0,0.00016413,2]
[339104172,1727248242330,-151.852091,0.00016418,2]
[339104173,1727248242339,-151.0,0.00016418,2]
[339104174,1727248242349,-178.413121,0.00016418,2]
[339104175,1727248242358,-151.0,0.00016418,2]
[339104176,1727248242367,-151.0,0.00016418,2]
[339104177,1727248242378,-202.530774,0.00016418,2]
[339104178,1727248242388,-354.065929,0.00016418,2]
[339104179,1727248242397,-354.065929,0.00016418,2]
[339104180,1727248242407,-151.0,0.00016418,2]
[339104181,1727248242416,-162.713224,0.00016418,2]
[339104182,1727248242428,-151.0,0.00016418,2]
[339104183,1727248242438,-151.0,0.00016418,2]
[339104184,1727248242451,-151.0,0.00016418,2]
[339104185,1727248242461,-151.0,0.00016418,2]
[339104186,1727248242471,-151.0,0.00016418,2]
[339104187,1727248242480,-151.0,0.00016418,2]
[339104188,1727248242490,-151.0,0.00016428,2]
[339104189,1727248242500,-151.0,0.00016428,2]
[339104190,1727248242509,-151.0,0.00016428,2]
[339104192,1727248242519,-151.0,0.00016428,2]
[339104193,1727248242528,-266.22108,0.00016428,2]
[339104194,1727248242538,-266.22108,0.00016428,2]
[339104195,1727248242548,-428.273564,0.00016428,2]
[339104196,1727248242558,-428.273564,0.00016428,2]
[339104197,1727248242568,-151.0,0.00016428,2]
[339104198,1727248242577,-151.0,0.00016428,2]
[339104199,1727248242587,-326.779208,0.00016428,2]
[339104200,1727248242597,-326.779208,0.00016428,2]
[339104201,1727248242606,-151.0,0.00016428,2]
[339104202,1727248242616,-151.0,0.00016428,2]
[339104203,1727248242625,-174.260444,0.00016428,2]
[339104204,1727248242635,-151.0,0.00016428,2]
[339104206,1727248242646,-174.260444,0.00016428,2]
[339104208,1727248242655,-151.0,0.00016428,2]
[339104210,1727248242664,-151.0,0.00016428,2]
[339104212,1727248242674,-151.0,0.00016428,2]
[339104214,1727248242684,-320.277506,0.00016428,2]
[339104216,1727248242696,-320.277506,0.00016428,2]
[339104218,1727248242706,-183.824279,0.00016428,2]
[339104219,1727248242717,-151.0,0.00016428,2]
[339104221,1727248242726,-183.824279,0.00016428,2]
[339104223,1727248242736,-151.0,0.00016428,2]
[339104225,1727248242745,-151.0,0.00016428,2]
[339104227,1727248242755,-151.0,0.00016428,2]
[339104229,1727248242764,-151.0,0.00016428,2]
[339104231,1727248242774,-564.565688,0.00016428,2]
[339104233,1727248242784,-151.0,0.00016428,2]
[339104235,1727248242794,-564.565688,0.00016428,2]
[339104237,1727248242804,-151.0,0.00016428,2]
[339104238,1727248242814,-927.094034,0.00016428,2]
[339104240,1727248242824,-151.0,0.00016428,2]
[339104241,1727248242834,-927.094034,0.00016428,2]
[339104243,1727248242844,-151.0,0.00016428,2]
[339104244,1727248242854,-151.0,0.00016428,2]
[339104246,1727248242864,-151.0,0.00016428,2]
[339104248,1727248242874,-222.725019,0.00016428,2]
[339104250,1727248242883,-222.725019,0.00016428,2]
[339104252,1727248242893,-329.77422125,0.00016438,2]
[339104254,1727248242903,-500.0,0.00016438,2]
[339104255,1727248242912,-500.0,0.00016438,2]
[339104257,1727248242922,-500.0,0.00016438,2]
[339104259,1727248242931,-500.0,0.00016438,2]
[339104261,1727248242941,-500.0,0.00016438,2]
[339104263,1727248242951,-500.0,0.00016438,2]
[339104264,1727248242960,-187.63639067,0.00016438,2]
[339104266,1727248242970,-500.0,0.00016438,2]
[339104268,1727248242979,-500.0,0.00016438,2]
[339104270,1727248242989,-500.0,0.00016438,2]
[339104272,1727248243000,-500.0,0.00016438,2]
[339104274,1727248243011,-378.5,0.00016438,2]
[339104276,1727248243021,-500.0,0.00016438,2]
[339104277,1727248243031,-500.0,0.00016438,2]
[339104279,1727248243041,-500.0,0.00016438,2]
[339104281,1727248243050,-500.0,0.00016438,2]
[339104283,1727248243060,-500.0,0.00016438,2]
[339104285,1727248243070,-500.0,0.00016438,2]
[339104287,1727248243080,-500.0,0.00016438,2]
[339104288,1727248243089,-511.25929439,0.00016438,2]
[339104290,1727248243098,-500.0,0.00016438,2]
[339104292,1727248243108,-500.0,0.00016438,2]
[339104294,1727248243122,-500.0,0.00016438,2]
[339104296,1727248243131,-500.0,0.00016438,2]
[339104298,1727248243141,-500.0,0.00016438,2]
[339104300,1727248243151,-500.0,0.00016438,2]
[339104302,1727248243160,-500.0,0.00016438,2]
[339104304,1727248243171,-500.0,0.00016438,2]
[339104306,1727248243181,-500.0,0.00016438,2]
[339104308,1727248243193,-504.69926096,0.00016438,2]
[339104310,1727248243205,-503.29,0.00016438,2]
[339104311,1727248243217,-704.35,0.00016438,2]
[339104312,1727248243226,-753.56,0.00016438,2]
[339104313,1727248243238,-500.0,0.00016438,2]
[339104314,1727248243249,-507.49427834,0.00016438,2]
[339104317,1727248243259,-500.0,0.00016438,2]
[339104319,1727248243269,-500.0,0.00016438,2]
[339104321,1727248243279,-500.0,0.00016438,2]
[339104323,1727248243288,-500.0,0.00016438,2]
[339104325,1727248243298,-547.62,0.00016438,2]
[339104327,1727248243308,-500.0,0.00016438,2]
[339104328,1727248243318,-500.0,0.00016438,2]
[339104329,1727248243328,-507.95582857,0.00016438,2]
[339104330,1727248243338,-500.0,0.00016438,2]
[339104331,1727248243347,-500.0,0.00016438,2]
[339104332,1727248243357,-500.0,0.00016438,2]
[339104333,1727248243367,-500.0,0.00016438,2]
[339104334,1727248243376,-515.79892112,0.00016438,2]
[339104335,1727248243386,-500.0,0.00016438,2]
[339104336,1727248243396,-501.55820249,0.00016438,2]
[339104337,1727248243406,-500.0,0.00016438,2]
[339104338,1727248243417,-500.0,0.00016438,2]
[339104339,1727248243426,-500.0,0.00016438,2]
[339104340,1727248243436,-503.81702598,0.00016438,2]
[339104341,1727248243448,-425.90275955,0.00016438,2]
[339104342,1727248243457,-500.0,0.00016438,2]
[339104343,1727248243467,-500.0,0.00016438,2]
[339104344,1727248243476,-501.44665171,0.00016438,2]
[339104345,1727248243486,-500.0,0.00016438,2]
[339104346,1727248243496,-500.0,0.00016438,2]
[339104347,1727248243506,-946.98,0.00016438,2]
[339104348,1727248243516,-503.95406092,0.00016438,2]
[339104349,1727248243526,-500.0,0.00016438,2]
[339104350,1727248243536,-500.0,0.00016438,2]